Workbook

Sheet Summary
A1: Script | B1: Ausführungszeit (ms) | H1: x-mal langsamer als CPython
B2: CPython | C2: Skulpt | D2: Brython | E2: PyPy.js | F2: Pyodide | G2: PyScript | H2: CPython | I2: Skulpt | J2: Brython | K2: PyPy.js | L2: Pyodide | M2: PyScript
A3: assignment.py | B3: 47 | C3: 1711 | D3: 1242 | E3: 1602 | F3: 221 | G3: 194 | H3: =ROUND(B3/$B3,2) -> 1 | I3: =ROUND(C3/$B3,2) -> 36.4 | J3: =ROUND(D3/$B3,2) -> 26.4 | K3: =ROUND(E3/$B3,2) -> 34.1 | L3: =ROUND(F3/$B3,2) -> 4.7 | M3: =ROUND(G3/$B3,2) -> 4.1
A4: augm_assign.py | B4: 97 | C4: 2919 | D4: 2116 | E4: 1828 | F4: 378 | G4: 325 | H4: =ROUND(B4/$B4,2) -> 1 | I4: 30.1 | J4: 21.8 | K4: 18.9 | L4: 3.9 | M4: 3.4
A5: assignment_float.py | B5: 44 | C5: 1707 | D5: 1306 | E5: 1505 | F5: 234 | G5: 195 | H5: 1 | I5: 38.8 | J5: 29.7 | K5: 34.2 | L5: 5.3 | M5: 4.4
A6: build_dict.py | B6: 112 | C6: 2301 | D6: 2071 | E6: 2142 | F6: 466 | G6: 437 | H6: 1 | I6: 20.5 | J6: 18.5 | K6: 19.1 | L6: 4.2 | M6: 3.9
A7: set_dict_item.py | B7: 67 | C7: 1824 | D7: 1455 | E7: 2182 | F7: 347 | G7: 320 | H7: 1 | I7: 27.2 | J7: 21.7 | K7: 32.6 | L7: 5.2 | M7: 4.8
A8: build_list.py | B8: 84 | C8: 1924 | D8: 1302 | E8: 1527 | F8: 440 | G8: 412 | H8: 1 | I8: 22.9 | J8: 15.5 | K8: 18.2 | L8: 5.2 | M8: 4.9
A9: set_list_item.py | B9: 73 | C9: 2264 | D9: 1432 | E9: 1455 | F9: 342 | G9: 307 | H9: 1 | I9: 31.0 | J9: 19.6 | K9: 19.9 | L9: 4.7 | M9: 4.2
A10: add_integers.py | B10: 106 | C10: 4232 | D10: 2298 | E10: 1743 | F10: 436 | G10: 381 | H10: 1 | I10: 39.9 | J10: 21.7 | K10: 16.4 | L10: 4.1 | M10: 3.6
A11: add_strings.py | B11: 154 | C11: 3155 | D11: 3440 | E11: 1760 | F11: 627 | G11: 575 | H11: 1 | I11: 20.5 | J11: 22.3 | K11: 11.4 | L11: 4.1 | M11: 3.7
A12: str_of_int.py | B12: 23 | C12: 553 | D12: 131 | E12: 189 | F12: 104 | G12: 103 | H12: 1 | I12: 24.0 | J12: 5.7 | K12: 8.2 | L12: 4.5 | M12: 4.5
A13: create_function.py | B13: 114 | C13: 2862 | D13: 2047 | E13: 1521 | F13: 526 | G13: 479 | H13: 1 | I13: 25.1 | J13: 18.0 | K13: 13.3 | L13: 4.6 | M13: 4.2
A14: function_call.py | B14: 117 | C14: 2363 | D14: 2090 | E14: 1387 | F14: 457 | G14: 385 | H14: 1 | I14: 20.2 | J14: 17.9 | K14: 11.9 | L14: 3.9 | M14: 3.3
A15: Durchschnitt | B15: =AVERAGE(B3:B14) -> 87 | C15: =AVERAGE(C3:C14) -> 2318 | D15: 1744 | E15: =AVERAGE(E3:E14) -> 1570 | F15: 382 | G15: 343 | H15: 1 | I15: 28.1 | J15: =AVERAGE(J3:J14) -> 19.9 | K15: =AVERAGE(K3:K14) -> 19.9 | L15: 4.5 | M15: 4.1

Sheet CPython
A1: Script | B1: 1 | C1: 2 | D1: 3 | E1: 4 | F1: 5 | G1: GEOMEAN | H1: ms
A2: assignment.py | B2: 0.04500293732 | C2: 0.04699826241 | D2: 0.05900263786 | E2: 0.04499864578 | F2: 0.04299688339 | G2: =GEOMEAN(B2:F2) -> 0.04748605623 | H2: =ROUND(G2*1000,0) -> 47
A3: augm_assign.py | B3: 0.09400987625 | C3: 0.1050000191 | D3: 0.101000309 | E3: 0.09399867058 | F3: 0.09401249886 | G3: =GEOMEAN(B3:F3) -> 0.0974986436 | H3: =ROUND(G3*1000,0) -> 97
A4: assignment_float.py | B4: 0.04699993134 | C4: 0.04199981689 | D4: 0.04300022125 | E4: 0.04299926758 | F4: 0.04498815536 | G4: 0.04396174381 | H4: 44
A5: build_dict.py | B5: 0.1260004044 | C5: 0.1040029526 | D5: 0.1029994488 | E5: 0.1160047054 | F5: 0.1110024452 | G5: 0.1116894448 | H5: 112
A6: set_dict_item.py | B6: 0.06698727608 | C6: 0.07000946999 | D6: 0.06600046158 | E6: 0.06700062752 | F6: 0.06699943542 | G6: 0.06738592882 | H6: 67
A7: build_list.py | B7: 0.08200359344 | C7: 0.08199906349 | D7: 0.08599877357 | E7: 0.08699560165 | F7: 0.08301019669 | G7: 0.08397549153 | H7: 84
A8: set_list_item.py | B8: 0.07800936699 | C8: 0.07399725914 | D8: 0.07001209259 | E8: 0.07100105286 | F8: 0.07298755646 | G8: 0.07314923891 | H8: 73
A9: add_integers.py | B9: 0.1039891243 | C9: 0.1050138474 | D9: 0.1059863567 | E9: 0.1050128937 | F9: 0.1079986095 | G9: 0.1055915218 | H9: 106
A10: add_strings.py | B10: 0.1509895325 | C10: 0.1579864025 | D10: 0.1560034752 | E10: 0.1519918442 | F10: 0.1530013084 | G10: 0.1539725316 | H10: 154
A11: str_of_int.py | B11: 0.02098727226 | C11: 0.02201294899 | D11: 0.02900862694 | E11: 0.02199935913 | F11: 0.02200078964 | G11: 0.02303572785 | H11: 23
A12: create_function.py | B12: 0.1040005684 | C12: 0.122992754 | D12: 0.1079983711 | E12: 0.1130077839 | F12: 0.1219968796 | G12: 0.1137517024 | H12: 114
A13: function_call.py | B13: 0.1120126247 | C13: 0.1149945259 | D13: 0.114004612 | E13: 0.1219880581 | F13: 0.1210038662 | G13: 0.1167338006 | H13: 117

Sheet Skulpt
A1: Script | B1: 1 | C1: 2 | D1: 3 | E1: 4 | F1: 5 | G1: GEOMEAN | H1: ms
A2: assignment.py | B2: 1.641000032 | C2: 1.684000015 | D2: 1.671000004 | E2: 1.779999971 | F2: 1.782000065 | G2: =GEOMEAN(B2:F2) -> 1.71060985 | H2: =ROUND(G2*1000,0) -> 1711
A3: augm_assign.py | B3: 2.874000072 | C3: 2.788000107 | D3: 2.96600008 | E3: 2.904999971 | F3: 3.072000027 | G3: =GEOMEAN(B3:F3) -> 2.919467287 | H3: =ROUND(G3*1000,0) -> 2919
A4: assignment_float.py | B4: 1.637000084 | C4: 1.646000147 | D4: 1.705999851 | E4: 1.743000031 | F4: 1.808000088 | G4: 1.706831622 | H4: 1707
A5: build_dict.py | B5: 2.148000002 | C5: 2.161000013 | D5: 2.411000013 | E5: 2.32400012 | F5: 2.478000164 | G5: 2.300619239 | H5: 2301
A6: set_dict_item.py | B6: 1.744999886 | C6: 1.789999962 | D6: 1.826999903 | E6: 1.838999987 | F6: 1.922999859 | G6: 1.823851965 | H6: 1824
A7: build_list.py | B7: 1.821000099 | C7: 1.871999979 | D7: 1.867000103 | E7: 2.023999929 | F7: 2.045000076 | G7: 1.923679844 | H7: 1924
A8: set_list_item.py | B8: 2.244999886 | C8: 2.319000006 | D8: 2.188999891 | E8: 2.208000183 | F8: 2.361999989 | G8: 2.263645224 | H8: 2264
A9: add_integers.py | B9: 3.781999826 | C9: 3.867000103 | D9: 4.368000031 | E9: 4.579999924 | F9: 4.64199996 | G9: 4.232430007 | H9: 4232
A10: add_strings.py | B10: 3.044999838 | C10: 2.992000103 | D10: 3.108999968 | E10: 3.256999969 | F10: 3.386999846 | G10: 3.154717721 | H10: 3155
A11: str_of_int.py | B11: 0.5639998913 | C11: 0.4329998493 | D11: 0.6740000248 | E11: 0.4649999142 | F11: 0.6750001907 | G11: 0.5528873956 | H11: 553
A12: create_function.py | B12: 2.99000001 | C12: 3.003999949 | D12: 2.763999939 | E12: 2.815999985 | F12: 2.746999979 | G12: 2.862068928 | H12: 2862
A13: function_call.py | B13: 2.383000135 | C13: 2.355000019 | D13: 2.330000162 | E13: 2.412999868 | F13: 2.335000038 | G13: 2.362996208 | H13: 2363

Sheet Brython
A1: Script | B1: 1 | C1: 2 | D1: 3 | E1: 4 | F1: 5 | G1: GEOMEAN | H1: ms
A2: assignment.py | B2: 1.174000025 | C2: 1.203999996 | D2: 1.279000044 | E2: 1.226000071 | F2: 1.330999851 | G2: =GEOMEAN(B2:F2) -> 1.241557194 | H2: =ROUND(G2*1000,0) -> 1242
A3: augm_assign.py | B3: 2.237999916 | C3: 2.110000134 | D3: 2.063999891 | E3: 2.139999866 | F3: 2.034999847 | G3: =GEOMEAN(B3:F3) -> 2.116245605 | H3: =ROUND(G3*1000,0) -> 2116
A4: assignment_float.py | B4: 1.299999952 | C4: 1.299000025 | D4: 1.272000074 | E4: 1.347000122 | F4: 1.315000057 | G4: 1.306371231 | H4: 1306
A5: build_dict.py | B5: 1.842999935 | C5: 2.003999949 | D5: 2.101999998 | E5: 2.213000059 | F5: 2.220000029 | G5: 2.071467045 | H5: 2071
A6: set_dict_item.py | B6: 1.447999954 | C6: 1.434000015 | D6: 1.429999828 | E6: 1.503999949 | F6: 1.457999945 | G6: 1.454560547 | H6: 1455
A7: build_list.py | B7: 1.214999914 | C7: 1.226000071 | D7: 1.372000217 | E7: 1.308000088 | F7: 1.398000002 | G7: 1.301688816 | H7: 1302
A8: set_list_item.py | B8: 1.43900013 | C8: 1.388000011 | D8: 1.437000036 | E8: 1.432999849 | F8: 1.465999842 | G8: 1.432377301 | H8: 1432
A9: add_integers.py | B9: 2.226999998 | C9: 2.25 | D9: 2.244999886 | E9: 2.476000071 | F9: 2.299000025 | G9: 2.297638699 | H9: 2298
A10: add_strings.py | B10: 3.226999998 | C10: 3.296999931 | D10: 3.233999968 | E10: 3.638000011 | F10: 3.848999977 | G10: 3.440120885 | H10: 3440
A11: str_of_int.py | B11: 0.1259999275 | C11: 0.1319999695 | D11: 0.1370000839 | E11: 0.1330001354 | F11: 0.126999855 | G11: 0.1309375027 | H11: 131
A12: create_function.py | B12: 2.056999922 | C12: 2.013999939 | D12: 2.065999985 | E12: 2.047999859 | F12: 2.05099988 | G12: 2.047122916 | H12: 2047
A13: function_call.py | B13: 1.963000059 | C13: 2.25 | D13: 1.995000124 | E13: 2.101999998 | F13: 2.150999784 | G13: 2.089602923 | H13: 2090

Sheet PyPy.js
A1: Script | B1: 1 | C1: 2 | D1: 3 | E1: 4 | F1: 5 | G1: GEOMEAN | H1: ms
A2: assignment.py | B2: 1.601999998 | C2: 1.601999998 | D2: 1.601999998 | E2: 1.601999998 | F2: 1.601999998 | G2: =GEOMEAN(B2:F2) -> 1.601999998 | H2: =ROUND(G2*1000,0) -> 1602
A3: augm_assign.py | B3: 1.828000069 | C3: 1.828000069 | D3: 1.828000069 | E3: 1.828000069 | F3: 1.828000069 | G3: =GEOMEAN(B3:F3) -> 1.828000069 | H3: =ROUND(G3*1000,0) -> 1828
A4: assignment_float.py | B4: 1.505000114 | C4: 1.505000114 | D4: 1.505000114 | E4: 1.505000114 | F4: 1.505000114 | G4: 1.505000114 | H4: 1505
A5: build_dict.py | B5: 2.14199996 | C5: 2.14199996 | D5: 2.14199996 | E5: 2.14199996 | F5: 2.14199996 | G5: 2.14199996 | H5: 2142
A6: set_dict_item.py | B6: 2.181999922 | C6: 2.181999922 | D6: 2.181999922 | E6: 2.181999922 | F6: 2.181999922 | G6: 2.181999922 | H6: 2182
A7: build_list.py | B7: 1.52699995 | C7: 1.52699995 | D7: 1.52699995 | E7: 1.52699995 | F7: 1.52699995 | G7: 1.52699995 | H7: 1527
A8: set_list_item.py | B8: 1.455000162 | C8: 1.455000162 | D8: 1.455000162 | E8: 1.455000162 | F8: 1.455000162 | G8: 1.455000162 | H8: 1455
A9: add_integers.py | B9: 1.743000031 | C9: 1.743000031 | D9: 1.743000031 | E9: 1.743000031 | F9: 1.743000031 | G9: 1.743000031 | H9: 1743
A10: add_strings.py | B10: 1.75999999 | C10: 1.75999999 | D10: 1.75999999 | E10: 1.75999999 | F10: 1.75999999 | G10: 1.75999999 | H10: 1760
A11: str_of_int.py | B11: 0.1889998913 | C11: 0.1889998913 | D11: 0.1889998913 | E11: 0.1889998913 | F11: 0.1889998913 | G11: 0.1889998913 | H11: 189
A12: create_function.py | B12: 1.521000147 | C12: 1.521000147 | D12: 1.521000147 | E12: 1.521000147 | F12: 1.521000147 | G12: 1.521000147 | H12: 1521
A13: function_call.py | B13: 1.387000084 | C13: 1.387000084 | D13: 1.387000084 | E13: 1.387000084 | F13: 1.387000084 | G13: 1.387000084 | H13: 1387

Sheet Pyodide
A1: Script | B1: 1 | C1: 2 | D1: 3 | E1: 4 | F1: 5 | G1: GEOMEAN | H1: ms
A2: assignment.py | B2: 0.2250001431 | C2: 0.2230000496 | D2: 0.2079999447 | E2: 0.2339999676 | F2: 0.2169997692 | G2: =GEOMEAN(B2:F2) -> 0.2212306058 | H2: =ROUND(G2*1000,0) -> 221
A3: augm_assign.py | B3: 0.3580002785 | C3: 0.3609998226 | D3: 0.3490002155 | E3: 0.3949999809 | F3: 0.4340000153 | G3: =GEOMEAN(B3:F3) -> 0.3781469253 | H3: =ROUND(G3*1000,0) -> 378
A4: assignment_float.py | B4: 0.2189998627 | C4: 0.2409999371 | D4: 0.2290000916 | E4: 0.2409999371 | F4: 0.2409999371 | G4: 0.2340270494 | H4: 234
A5: build_dict.py | B5: 0.4199998379 | C5: 0.5399997234 | D5: 0.4570000172 | E5: 0.4630000591 | F5: 0.4590001106 | G5: 0.4662196163 | H5: 466
A6: set_dict_item.py | B6: 0.3339998722 | C6: 0.3500001431 | D6: 0.3430001736 | E6: 0.3429999352 | F6: 0.3649997711 | G6: 0.3468479232 | H6: 347
A7: build_list.py | B7: 0.4429998398 | C7: 0.4189999104 | D7: 0.4479999542 | E7: 0.4449999332 | F7: 0.4440000057 | G7: 0.4396708551 | H7: 440
A8: set_list_item.py | B8: 0.3219997883 | C8: 0.3299996853 | D8: 0.375 | E8: 0.3459999561 | F8: 0.3380000591 | G8: 0.3417264854 | H8: 342
A9: add_integers.py | B9: 0.4220001698 | C9: 0.4309999943 | D9: 0.4560000896 | E9: 0.4330000877 | F9: 0.4379997253 | G9: 0.4358563003 | H9: 436
A10: add_strings.py | B10: 0.5979998112 | C10: 0.6050000191 | D10: 0.601000309 | E10: 0.6510000229 | F10: 0.6870000362 | G10: 0.6274422781 | H10: 627
A11: str_of_int.py | B11: 0.09700012207 | C11: 0.1069998741 | D11: 0.1000001431 | E11: 0.1099998951 | F11: 0.1070001125 | G11: 0.1040846137 | H11: 104
A12: create_function.py | B12: 0.5099999905 | C12: 0.5080001354 | D12: 0.5409998894 | E12: 0.5380001068 | F12: 0.5340001583 | G12: 0.5260063463 | H12: 526
A13: function_call.py | B13: 0.4719998837 | C13: 0.4179999828 | D13: 0.4660000801 | E13: 0.4690001011 | F13: 0.4639999866 | G13: 0.4573398134 | H13: 457

Sheet PyScript
A1: Script | B1: 1 | C1: 2 | D1: 3 | E1: 4 | F1: 5 | G1: GEOMEAN | H1: ms
A2: assignment.py | B2: 0.1899998188 | C2: 0.1909999847 | D2: 0.1959996223 | E2: 0.1999998093 | F2: 0.1949996948 | G2: =GEOMEAN(B2:F2) -> 0.1943663385 | H2: =ROUND(G2*1000,0) -> 194
A3: augm_assign.py | B3: 0.3159999847 | C3: 0.3159997463 | D3: 0.3380000591 | E3: 0.3270001411 | F3: 0.3290002346 | G3: =GEOMEAN(B3:F3) -> 0.3250924952 | H3: =ROUND(G3*1000,0) -> 325
A4: assignment_float.py | B4: 0.1880002022 | C4: 0.1989998817 | D4: 0.2030000687 | E4: 0.1960000992 | F4: 0.1870000362 | G4: 0.1945006514 | H4: 195
A5: build_dict.py | B5: 0.4140002728 | C5: 0.4079999924 | D5: 0.4240000248 | E5: 0.529999733 | F5: 0.4210002422 | G5: 0.4372370265 | H5: 437
A6: set_dict_item.py | B6: 0.3209998608 | C6: 0.3169999123 | D6: 0.3250000477 | E6: 0.3289999962 | F6: 0.3100001812 | G6: 0.3203325348 | H6: 320
A7: build_list.py | B7: 0.4060001373 | C7: 0.3940000534 | D7: 0.4260001183 | E7: 0.4200000763 | F7: 0.4139997959 | G7: 0.4118474065 | H7: 412
A8: set_list_item.py | B8: 0.2910001278 | C8: 0.3029999733 | D8: 0.3350000381 | E8: 0.3120000362 | F8: 0.2960000038 | G8: 0.3070191023 | H8: 307
A9: add_integers.py | B9: 0.3759999275 | C9: 0.3659999371 | D9: 0.376999855 | E9: 0.3809998035 | F9: 0.403999567 | G9: 0.3805950375 | H9: 381
A10: add_strings.py | B10: 0.598000288 | C10: 0.5660002232 | D10: 0.5740001202 | E10: 0.5729999542 | F10: 0.5650000572 | G10: 0.5750778118 | H10: 575
A11: str_of_int.py | B11: 0.1449999809 | C11: 0.09699988365 | D11: 0.09300017357 | E11: 0.09900021553 | F11: 0.09000015259 | G11: 0.1031099226 | H11: 103
A12: create_function.py | B12: 0.4960000515 | C12: 0.4759998322 | D12: 0.4819998741 | E12: 0.4729998112 | F12: 0.4679999352 | G12: 0.4789039744 | H12: 479
A13: function_call.py | B13: 0.3949999809 | C13: 0.3789999485 | D13: 0.3800001144 | E13: 0.388999939 | F13: 0.3820002079 | G13: 0.3849520326 | H13: 385
